bitfinex/quotes_SOLUSD_20260304
["timestamp","ask_amount","ask_price","bid_price","bid_amount"]
[1772647658123,2.68103756,91.758,91.723,2.6201933]
[1772647658915,0.2,91.76,91.723,2.6201933]
[1772647659125,2.68103756,91.789,91.734,2.6201933]
[1772647659418,2.68103756,91.788,91.736,2.6201933]
[1772647662420,10.89414465,91.793,91.741,2.6201933]
[1772647662721,10.89360821,91.797,91.743,2.6201933]
[1772647663706,2.68103756,91.789,91.743,2.6201933]
[1772647663903,2.68103756,91.788,91.743,2.6201933]
[1772647664324,2.78103756,91.81,91.745,2.6201933]
[1772647664624,2.78103756,91.81,91.754,2.6201933]
[1772647664817,2.78103756,91.81,91.756,2.6201933]
[1772647665322,2.68103756,91.809,91.763,2.6201933]
[1772647665522,2.68103756,91.808,91.763,2.6201933]
[1772647666508,2.68103756,91.808,91.764,38.14131903]
[1772647666707,2.68103756,91.808,91.765,2.6201933]
[1772647668217,2.68103756,91.806,91.765,2.6201933]
[1772647668823,2.68103756,91.806,91.767,3.129638]
[1772647670327,0.1,91.81,91.767,3.129638]
[1772647670925,0.1,91.81,91.769,3.129638]
[1772647671331,2.93598974,91.81,91.769,3.129638]
[1772647672820,2.93598974,91.81,91.768,38.13965652]
[1772647672821,2.93598974,91.81,91.771,3.129638]
[1772647673026,2.83598974,91.808,91.772,38.13799414]
[1772647673225,2.83598974,91.808,91.772,10.89656975]
[1772647674236,2.83598974,91.808,91.763,10.89763848]
[1772647674614,2.83598974,91.808,91.716,3.129638]
[1772647674929,2.83598974,91.787,91.721,3.69383402]
[1772647675135,2.83598974,91.787,91.722,3.129638]
[1772647675948,2.83598974,91.787,91.724,3.129638]
[1772647677031,2.83598974,91.785,91.729,3.129638]
[1772647677623,2.83598974,91.785,91.733,3.129638]
[1772647677829,2.83598974,91.793,91.733,3.129638]
[1772647679741,2.83598974,91.793,91.74,3.41396114]
[1772647680443,2.83598974,91.791,91.74,3.129638]
[1772647681346,2.83598974,91.791,91.742,3.129638]
[1772647681548,2.83598974,91.806,91.75,3.41396114]
[1772647681924,2.83598974,91.806,91.75,3.129638]
[1772647682218,2.83598974,91.806,91.751,1.8]
[1772647682424,2.83598974,91.806,91.721,43.61018176]
[1772647682425,2.83598974,91.799,91.738,10.90060825]
[1772647682626,2.83598974,91.789,91.738,10.90060825]
[1772647683846,2.83598974,91.787,91.726,3.69383402]
[1772647684560,2.83598974,91.787,91.715,10.90334187]
[1772647684859,2.83598974,91.759,91.701,27.26247361]
[1772647685157,2.83598974,91.759,91.704,3.69383402]
[1772647685356,2.83598974,91.759,91.704,6.82347202]
[1772647685550,2.83598974,91.759,91.705,3.129638]
[1772647686134,2.83598974,91.757,91.707,3.129638]
[1772647687937,43.5786813,91.788,91.709,3.129638]
[1772647687938,2.83598974,91.755,91.709,3.129638]
[1772647688153,2.83598974,91.755,91.708,38.1646094]
[1772647689638,2.83598974,91.753,91.708,3.129638]
[1772647692364,194.6203199,92.207,91.732,3.69383402]
[1772647692365,2.83598974,91.796,91.732,3.69383402]
[1772647692536,2.83598974,91.796,91.743,3.129638]
[1772647694257,2.83598974,91.796,91.72,1.09027474]
[1772647694258,2.83598974,91.794,91.745,3.129638]
[1772647696961,2.83598974,91.792,91.747,3.129638]
[1772647697161,2.83598974,91.803,91.747,3.129638]
[1772647697359,2.83598974,91.801,91.75,3.129638]
[1772647697567,2.93598974,91.81,91.754,3.129638]
[1772647697939,2.83598974,91.808,91.754,3.129638]
[1772647699252,2.83598974,91.808,91.756,3.3110483]
[1772647699661,0.1,91.81,91.761,3.59537144]
[1772647699864,3.33292173,91.866,91.777,3.3110483]
[1772647700864,3.33292173,91.859,91.777,3.3110483]
[1772647701359,3.33292173,91.849,91.778,38.13550087]
[1772647701590,3.33292173,91.849,91.779,3.3110483]
[1772647702060,3.33292173,91.849,91.782,3.3110483]
[1772647703262,38.1022883,91.858,91.787,3.3110483]
[1772647703263,3.33292173,91.847,91.787,3.3110483]
[1772647705250,3.41120327,91.845,91.791,3.35718337]
[1772647705464,3.41120327,91.845,91.79,38.1305153]
[1772647706161,3.41120327,91.845,91.791,3.35718337]
[1772647707658,3.41120327,91.843,91.792,38.1296845]
[1772647708172,3.41120327,91.843,91.792,10.89419557]
[1772647708550,3.41120327,91.843,91.793,3.35718337]
[1772647709671,3.41120327,91.843,91.786,3.69383402]
[1772647709672,3.41120327,91.843,91.795,3.35718337]
[1772647711074,3.41120327,91.843,91.794,92.59864478]
[1772647711075,3.41120327,91.851,91.8,3.64150651]
[1772647711368,3.41120327,91.878,91.8,3.64150651]
[1772647711561,10.8841168,91.877,91.801,38.12594633]
[1772647711769,3.41120327,91.876,91.805,3.35718337]
[1772647713674,3.41120327,91.874,91.81,3.35718337]
[1772647713870,3.41120327,91.874,91.814,3.35718337]
[1772647714081,3.41120327,91.883,91.814,3.35718337]
[1772647715459,10.88352452,91.882,91.815,38.12013286]
[1772647715672,3.41120327,91.881,91.819,3.35718337]
[1772647715861,3.41120327,91.881,91.818,3.69383402]
[1772647715862,3.41120327,91.881,91.823,3.35718337]
[1772647717855,3.41120327,91.879,91.824,38.11639658]
[1772647718067,3.41120327,91.879,91.825,3.35718337]
[1772647719962,3.41120327,91.877,91.826,10.89016182]
[1772647720580,3.41120327,91.877,91.827,3.35718337]
[1772647721463,3.41120327,91.877,91.811,27.22979494]
[1772647721464,3.41120327,91.877,91.819,3.35718337]
[1772647721863,3.41120327,91.877,91.803,3.35718337]
[1772647722070,3.41120327,91.875,91.806,3.35718337]
[1772647724661,3.41120327,91.873,91.807,14.24959898]
[1772647724873,3.41120327,91.869,91.807,14.24959898]
[1772647725379,3.41120327,91.869,91.808,3.35718337]
[1772647725966,8.78141597,91.87,91.809,10.89217832]
[1772647725967,3.41120327,91.867,91.809,10.89217832]
[1772647727580,3.41120327,91.859,91.801,3.35718337]
[1772647727780,3.41120327,91.859,91.795,3.35718337]
[1772647728186,8.78141597,91.86,91.793,27.23506069]
[1772647728187,3.41120327,91.857,91.797,3.35718337]
[1772647730281,3.71205563,91.855,91.799,3.55997288]
[1772647731598,3.71205563,91.853,91.801,3.55997288]
[1772647737179,3.71205563,91.851,91.803,3.55997288]
[1772647740292,3.71205563,91.849,91.805,3.55997288]
[1772647742387,3.71205563,91.847,91.807,3.55997288]
[1772647742588,10.88755334,91.848,91.807,3.55997288]
[1772647743495,14.59960897,91.848,91.807,3.55997288]
[1772647743702,3.71205563,91.847,91.807,3.55997288]
[1772647744399,3.71205563,91.847,91.806,10.89253425]
[1772647744400,3.71205563,91.845,91.809,3.55997288]
[1772647746192,10.88779043,91.846,91.809,3.55997288]
[1772647746389,3.71205563,91.846,91.811,3.55997288]
[1772647748584,3.71205563,91.844,91.812,10.89182241]
[1772647749292,3.71205563,91.844,91.807,10.89235459]
[1772647750201,3.71205563,91.844,91.802,10.89294149]
[1772647750497,3.71205563,91.844,91.803,3.55997288]
[1772647751083,3.71205563,91.842,91.791,3.55997288]
[1772647751292,3.71205563,91.842,91.756,1.8]
[1772647751293,3.71205563,91.826,91.788,10.89467032]
[1772647751499,3.71205563,91.826,91.789,3.55997288]
[1772647751797,30.0,91.827,91.789,3.55997288]
[1772647752390,30.0,91.821,91.789,3.55997288]
[1772647752793,3.71205563,91.82,91.789,3.55997288]
[1772647753396,30.0,91.817,91.791,3.55997288]
[1772647753703,3.71205563,91.816,91.791,3.55997288]
[1772647754413,30.0,91.815,91.791,3.55997288]
[1772647755288,3.71205563,91.814,91.792,10.89419557]
[1772647755485,33.71205563,91.812,91.792,10.89419557]
[1772647755682,2.44,92.037,91.792,10.89419557]
[1772647755683,3.71205563,91.856,91.793,3.55997288]
[1772647757286,3.71205563,91.854,91.795,3.55997288]
[1772647759004,4.09838172,91.85,91.795,3.55997288]
[1772647759314,3.85906766,91.849,91.794,10.89395821]
[1772647759599,3.85906766,91.847,91.788,10.89467032]
[1772647759807,3.85906766,91.847,91.789,3.56634091]
[1772647762084,3.85906766,91.845,91.79,10.89443294]
[1772647762404,3.85906766,91.845,91.791,3.56634091]
[1772647764989,3.85906766,91.843,91.792,10.89419557]
[1772647766211,30.0,91.8,91.792,10.89419557]
[1772647766413,24.40681132,91.8,91.792,10.89419557]
[1772647766911,24.40681132,91.8,91.792,14.47855859]
[1772647768502,3.92269206,91.816,91.785,27.23756323]
[1772647768503,3.92269206,91.816,91.793,3.58436302]
[1772647768687,10.89115599,91.818,91.793,3.58436302]
[1772647769611,3.92269206,91.818,91.794,10.89395821]
[1772647769792,3.92269206,91.818,91.795,3.58436302]
[1772647770895,3.92269206,91.818,91.794,10.89395821]
[1772647771811,3.92269206,91.816,91.788,14.47903334]
[1772647772709,3.92269206,91.816,91.789,3.58436302]
[1772647774120,3.92269206,91.816,91.79,10.89443294]
[1772647774318,3.92269206,91.816,91.791,3.58436302]
[1772647775222,3.92269206,91.816,91.792,10.89419557]
[1772647775406,3.92269206,91.816,91.793,3.58436302]
[1772647775601,10.89122929,91.817,91.792,10.89419557]
[1772647775911,3.92269206,91.816,91.792,10.89419557]
[1772647776316,3.92269206,91.816,91.793,3.58436302]
[1772647776652,3.92269206,91.816,91.773,3.69383402]
[1772647776653,3.92269206,91.814,91.714,43.61363066]
[1772647776807,3.92269206,91.799,91.701,152.67009082]
[1772647777011,3.92269206,91.799,91.715,1.25252189]
[1772647777822,3.92269206,91.769,91.715,1.25252189]
[1772647778031,3.92269206,91.759,91.715,1.25252189]
[1772647778443,3.92269206,91.757,91.716,10.90322299]
[1772647778732,3.92269206,91.757,91.715,1.25252189]
[1772647779324,3.92269206,91.757,91.715,4.83688491]
[1772647779931,3.92269206,91.757,91.716,10.90322299]
[1772647780319,3.92269206,91.757,91.716,14.48758601]
[1772647780509,3.92269206,91.755,91.717,3.58436302]
[1772647780711,3.92269206,91.792,91.717,3.58436302]
[1772647781937,3.92269206,91.789,91.717,3.58436302]
[1772647783436,3.92269206,91.787,91.719,3.58436302]
[1772647784133,3.92269206,91.787,91.72,1.8]
[1772647784308,3.92269206,91.787,91.721,3.58436302]
[1772647785415,38.13134613,91.788,91.719,3.58056694]
[1772647785416,38.13550087,91.778,91.719,3.58056694]
[1772647785616,3.92269206,91.777,91.717,3.56639051]
[1772647788525,3.64517331,91.775,91.719,3.51129449]
[1772647790236,3.64517331,91.775,91.719,3.49791371]
[1772647790438,3.64517331,91.784,91.724,3.48468663]
[1772647790640,10.89530645,91.783,91.726,3.48468663]
[1772647790947,3.64517331,91.782,91.726,3.48468663]
[1772647791745,10.89480702,91.787,91.726,3.48468663]
[1772647792048,3.64517331,91.79,91.733,3.47161148]
[1772647792223,3.64517331,91.797,91.733,3.47161148]
[1772647792545,10.89372085,91.796,91.738,3.45868651]
[1772647792731,3.64517331,91.795,91.738,3.45868651]
[1772647795148,3.64517331,91.795,91.725,152.63014444]
[1772647795149,3.64517331,91.793,91.679,10.90759097]
[1772647795473,3.64517331,91.739,91.65,0.2]
[1772647795626,3.64517331,91.739,91.693,10.9058458]
[1772647796433,3.64517331,91.739,91.688,10.90647501]
[1772647796836,3.64517331,91.739,91.697,10.90544708]
[1772647797041,3.64517331,91.737,91.69,11.10623487]
[1772647797358,3.64517331,91.737,91.701,3.86878398]
[1772647798658,3.92949645,91.736,91.701,3.86878398]
[1772647799534,3.92949645,91.736,91.663,1.19512612]
[1772647799535,8.78506019,91.72,91.663,1.19512612]
[1772647799735,3.92949645,91.719,91.663,1.19512612]
[1772647799966,3.92949645,91.719,91.664,3.86878398]
[1772647800136,3.92949645,91.719,91.665,3.86878398]
[1772647801556,3.92949645,91.717,91.667,3.86878398]
[1772647801947,3.92949645,91.717,91.663,1.19512612]
[1772647803359,3.92949645,91.717,91.665,3.86878398]
[1772647803737,3.64517331,91.715,91.667,3.86878398]
[1772647804161,3.64517331,91.715,91.663,1.19512612]
[1772647804741,3.64517331,91.709,91.663,1.19512612]
[1772647805161,3.64517331,91.699,91.636,3.86878398]
[1772647805764,3.64517331,91.697,91.644,3.86878398]
[1772647805964,3.64517331,91.697,91.65,1e-08]
[1772647806651,3.64517331,91.689,91.625,3.86878398]
[1772647807466,0.28432314,91.671,91.625,3.86878398]
[1772647807642,0.14216157,91.659,91.625,3.86878398]
[1772647807849,0.28432314,91.656,91.625,3.86878398]
[1772647808371,3.92949645,91.656,91.625,3.86878398]
[1772647809362,0.28432314,91.656,91.625,3.86878398]
[1772647809544,10.90952729,91.663,91.626,3.86878398]
[1772647809866,0.28432314,91.675,91.628,3.86878398]
[1772647810064,3.92949645,91.675,91.628,3.86878398]
[1772647814449,3.64517331,91.673,91.63,3.86878398]
[1772647814949,3.64517331,91.673,91.621,3.86878398]
[1772647816857,3.64517331,91.671,91.612,3.86878398]
[1772647818674,3.63500761,91.669,91.614,3.8205016]
[1772647818984,0.28432314,91.666,91.614,3.8205016]
[1772647819166,3.91933075,91.666,91.614,3.8205016]
[1772647820674,3.91933075,91.664,91.616,3.8205016]
[1772647822066,3.91933075,91.664,91.617,0.4]
[1772647822573,10.90952729,91.663,91.618,38.20210002]
[1772647822782,14.5445349,91.663,91.619,3.8205016]
[1772647822981,3.63500761,91.662,91.619,3.8205016]
[1772647823485,3.63500761,91.649,91.59,10.91815643]
[1772647823859,3.63500761,91.649,91.59,3.8205016]
[1772647824571,3.63500761,91.639,91.577,3.8205016]
[1772647824769,3.63500761,91.619,91.587,1e-08]
[1772647824967,3.63500761,91.609,91.544,3.8205016]
[1772647825265,8.8130624,91.61,91.531,10.92526029]
[1772647825266,3.63500761,91.579,91.531,10.92526029]
[1772647825495,3.63500761,91.579,91.532,3.72494407]
[1772647826276,3.63500761,91.579,91.52,3.72494407]
[1772647826482,3.63500761,91.579,91.531,10.92526029]
[1772647826783,3.63500761,91.579,91.52,3.72494407]
[1772647826784,0.28432314,91.566,91.526,10.92574355]
[1772647826985,38.5031093,91.578,91.526,10.92574355]
[1772647826986,0.28432314,91.558,91.526,10.92574355]
[1772647827558,0.28432314,91.558,91.53,11.12536137]
[1772647827764,0.28432314,91.558,91.531,3.72494407]
[1772647827965,3.69559609,91.553,91.53,0.2]
[1772647828268,3.69559609,91.562,91.532,3.72494407]
[1772647829168,3.69559609,91.562,91.534,3.72494407]
[1772647829375,10.92150771,91.563,91.534,3.72494407]
[1772647829982,3.69559609,91.57,91.534,3.72494407]
[1772647830186,10.92072644,91.569,91.534,3.72494407]
[1772647830771,3.69559609,91.57,91.534,3.72494407]
[1772647830979,14.61513606,91.579,91.534,3.72494407]
[1772647831304,3.69559609,91.578,91.536,3.72494407]
[1772647831975,3.69559609,91.588,91.536,3.72494407]
[1772647833177,3.69559609,91.586,91.538,3.72494407]
[1772647833370,3.69559609,91.586,91.531,10.92526029]
[1772647833678,3.69559609,91.586,91.532,3.72494407]
[1772647833873,3.69559609,91.586,91.53,0.2]
[1772647834087,38.2150305,91.587,91.505,3.72494407]
[1772647834088,3.69559609,91.569,91.505,3.72494407]
[1772647834394,3.69559609,91.549,91.49,0.2]
[1772647834608,3.69559609,91.549,91.495,11.78178725]
[1772647834975,3.69559609,91.549,91.496,3.72494407]
[1772647835683,3.69559609,91.547,91.497,10.92932008]
[1772647836078,38.23131034,91.548,91.495,0.85225024]
[1772647836079,3.69559609,91.539,91.495,0.85225024]
[1772647836476,3.69559609,91.539,91.497,3.72494407]
[1772647836895,3.69559609,91.539,91.495,0.85225024]
[1772647837400,3.69559609,91.529,91.49,0.2]
[1772647838302,33.69383402,91.537,91.49,0.2]
[1772647838303,3.69559609,91.527,91.49,0.2]
[1772647839401,3.69559609,91.527,91.492,3.72494407]
[1772647840284,10.92585713,91.526,91.493,10.9297979]
[1772647840501,14.62145322,91.526,91.494,3.72494407]
[1772647840686,3.69559609,91.525,91.494,3.72494407]
[1772647841198,3.69559609,91.525,91.49,0.2]
[1772647841388,3.69559609,91.525,91.491,3.72494407]
[1772647842485,3.69559609,91.525,91.49,0.2]
[1772647842486,3.69559609,91.509,91.451,3.72494407]
[1772647842789,8.82777187,91.48,91.429,10.93744445]
[1772647842980,3.69559609,91.479,91.429,10.93744445]
[1772647843186,3.69559609,91.479,91.427,3.72494407]
[1772647843387,3.69559609,91.479,91.428,10.93749031]
[1772647844412,3.69559609,91.477,91.424,10.9380203]
[1772647844801,38.26056537,91.478,91.408,10.93991467]
[1772647844802,3.69559609,91.459,91.408,10.93991467]
[1772647845309,3.69559609,91.459,91.406,3.72494407]
[1772647845683,3.69559609,91.449,91.404,0.97960701]
[1772647845883,3.69383402,91.463,91.4,1e-08]
[1772647845884,3.69559609,91.439,91.4,1e-08]
[1772647846105,3.69559609,91.439,91.38,0.2]
[1772647846106,3.69559609,91.419,91.38,0.2]
[1772647846292,3.69559609,91.419,91.363,11.22459988]
[1772647846293,92.9998468,91.398,91.363,1e-08]
[1772647846495,92.9998468,91.398,91.281,43.82066382]
[1772647846496,3.69559609,91.389,91.271,109.5638264]
[1772647846705,3.69559609,91.379,91.296,5.66202649]
[1772647847015,3.69559609,91.379,91.271,153.38935696]
[1772647847320,3.69559609,91.366,91.287,5.66148046]
[1772647847614,3.69559609,91.366,91.271,180.78031356]
[1772647847806,3.69559609,91.376,91.274,5.66210527]
[1772647848107,3.69559609,91.376,91.279,0.28432314]
[1772647848285,3.75503605,91.369,91.278,3.69383402]
[1772647848488,3.75503605,91.368,91.283,3.70674869]
[1772647849223,3.75503605,91.359,91.283,3.70674869]
[1772647849383,3.75503605,91.356,91.283,3.70674869]
[1772647849589,3.75503605,91.349,91.283,3.70674869]
[1772647850491,3.75503605,91.349,91.285,3.70674869]
[1772647850691,3.75503605,91.348,91.285,3.70674869]
[1772647851410,3.75503605,91.345,91.285,3.70674869]
[1772647851612,3.69383402,91.346,91.285,3.70674869]
[1772647851613,3.75503605,91.339,91.285,3.70674869]
[1772647852391,82.10270565,91.349,91.232,10.96106629]
[1772647852392,3.75503605,91.31,91.232,10.96106629]
[1772647852602,3.75503605,91.309,91.233,3.70674869]
[1772647853185,38.33054067,91.311,91.198,3.70674869]
[1772647853186,3.75503605,91.299,91.198,3.70674869]
[1772647853495,125.94320507,91.311,91.184,3.70674869]
[1772647853496,30.0,91.289,91.184,3.70674869]
[1772647853694,30.0,91.289,91.183,38.38434794]
[1772647853695,3.75503605,91.229,91.183,3.70674869]
[1772647853903,3.75503605,91.239,91.183,3.70674869]
[1772647854207,3.75503605,91.239,91.184,3.70674869]
[1772647854597,3.75503605,91.237,91.184,3.70674869]
[1772647854792,3.75503605,91.237,91.116,1.09750208]
[1772647854793,3.75503605,91.234,91.173,3.70674869]
[1772647854992,3.75503605,91.237,91.173,3.70674869]
[1772647855193,3.75503605,91.237,91.175,3.70674869]
[1772647856508,3.75503605,91.237,91.16,27.42401647]
[1772647856509,3.75503605,91.237,91.177,3.70674869]
[1772647856815,3.75503605,91.261,91.182,3.70674869]
[1772647857111,3.75503605,91.278,91.182,3.70674869]
[1772647858808,3.75503605,91.276,91.187,3.99107183]
[1772647859807,3.75503605,91.276,91.193,3.70674869]
[1772647860217,3.75503605,91.269,91.193,3.70674869]
[1772647860393,3.75503605,91.259,91.193,3.70674869]
[1772647860599,3.75503605,91.239,91.182,3.70674869]
[1772647861011,3.75503605,91.239,91.193,3.70674869]
[1772647861199,3.75503605,91.239,91.17,27.42117847]
[1772647861399,3.75503605,91.239,91.171,3.70674869]
[1772647862118,3.75503605,91.239,91.173,3.70674869]
[1772647862699,3.75503605,91.237,91.175,3.70674869]
[1772647864824,3.75503605,91.263,91.182,3.70674869]
[1772647865509,3.75503605,91.259,91.182,3.70674869]
[1772647866024,3.75503605,91.249,91.182,3.70674869]
[1772647866913,3.75503605,91.247,91.184,3.70674869]
[1772647867915,10.95914431,91.248,91.184,3.70674869]
[1772647868149,10.95914431,91.248,91.06,66.29043674]
[1772647868150,3.75503605,91.246,91.06,66.29043674]
[1772647868348,3.75503605,91.199,91.096,43.90933419]
[1772647868520,3.75503605,91.199,91.137,28.1439998]
[1772647868834,3.69383402,91.207,91.137,28.1439998]
[1772647868835,3.75503605,91.197,91.137,28.1439998]
[1772647869037,3.75503605,91.197,91.137,17.17155452]
[1772647869538,3.75503605,91.189,91.137,17.17155452]
[1772647870031,3.75503605,91.189,91.071,43.92173731]
[1772647870032,3.75503605,91.186,91.1,137.49617823]
[1772647870233,3.75503605,91.186,91.1,181.40397186]
[1772647870440,3.75503605,91.186,91.119,3.70674869]
[1772647870620,30.0,91.181,91.121,3.70674869]
[1772647870825,3.75503605,91.179,91.123,3.70674869]
[1772647871712,14.7210305,91.191,91.123,3.70674869]
[1772647871935,3.75503605,91.19,91.123,3.70674869]
[1772647872140,47.54662687,91.215,91.133,3.69383402]
[1772647872141,3.75503605,91.214,91.133,3.69383402]
[1772647872323,3.75503605,91.214,91.134,3.99107183]
[1772647872822,3.75503605,91.212,91.135,82.29549567]
[1772647873019,3.75503605,91.226,91.139,3.99107183]
[1772647873443,3.75503605,91.225,91.139,3.99107183]
[1772647873664,6.79862582,91.24,91.156,8.66077128]
[1772647873939,6.79862582,91.24,91.17,3.70674869]
[1772647874138,6.79862582,91.24,91.181,3.70674869]
[1772647874328,6.79862582,91.24,91.166,4.82477569]
[1772647874329,3.75503605,91.242,91.185,3.70674869]
[1772647874529,10.95998509,91.241,91.185,3.70674869]
[1772647874739,3.75503605,91.242,91.185,3.70674869]
[1772647875038,3.75503605,91.242,91.187,3.70674869]
[1772647875223,3.75503605,91.255,91.191,3.70674869]
[1772647876728,10.9572831,91.264,91.191,3.70674869]
[1772647876944,3.75503605,91.267,91.201,3.70674869]
[1772647877244,3.75503605,91.267,91.189,3.69383402]
[1772647877245,3.75503605,91.265,91.203,3.70674869]
[1772647878125,3.75503605,91.265,91.191,3.70674869]
[1772647878318,3.75503605,91.265,91.192,3.70674869]
[1772647878834,3.75503605,91.265,91.2,3.90053091]
[1772647879341,3.75503605,91.265,91.194,3.69383402]
[1772647879342,3.75503605,91.265,91.202,3.90053091]
[1772647879542,14.71219765,91.265,91.202,3.90053091]
[1772647880348,3.81053966,91.264,91.202,3.90053091]
[1772647881645,3.81053966,91.264,91.204,3.90053091]
[1772647881839,10.95734306,91.263,91.204,3.90053091]
[1772647882353,3.81053966,91.264,91.204,3.90053091]
[1772647882533,3.81053966,91.262,91.204,3.90053091]
[1772647883057,3.81053966,91.272,91.204,3.90053091]
[1772647883835,3.81053966,91.272,91.194,3.69383402]
[1772647883836,3.81053966,91.295,91.22,3.90053091]
[1772647884160,3.81053966,91.295,91.213,3.69383402]
[1772647884161,3.81053966,91.306,91.224,3.90053091]
[1772647885059,3.81053966,91.306,91.205,268.62562354]
[1772647885060,3.81053966,91.306,91.234,3.90053091]
[1772647886055,3.81053966,91.306,91.213,1.09633495]
[1772647886056,3.81053966,91.306,91.236,3.85866653]
[1772647886759,4.00324279,91.305,91.236,3.85866653]
[1772647887560,4.00324279,91.304,91.236,3.85866653]
[1772647887736,4.00324279,91.304,91.235,38.36247053]
[1772647888144,4.00324279,91.302,91.235,27.40176467]
[1772647888442,4.00324279,91.302,91.226,10.9617872]
[1772647888443,4.00324279,91.299,91.226,10.9617872]
[1772647888749,4.00324279,91.299,91.226,38.36625522]
[1772647889137,4.00324279,91.299,91.227,3.85866653]
[1772647890161,4.00324279,91.297,91.229,3.85866653]
[1772647892369,4.00324279,91.295,91.231,3.85866653]
[1772647893172,4.00324279,91.295,91.233,3.85866653]
[1772647893477,4.00324279,91.295,91.234,3.85866653]
[1772647893662,4.00324279,91.306,91.234,3.85866653]
[1772647894481,4.00324279,91.306,91.236,3.85866653]
[1772647894884,4.00324279,91.304,91.236,3.85866653]
[1772647896580,4.00324279,91.302,91.238,3.85866653]
[1772647897271,4.00324279,91.312,91.242,3.85866653]
[1772647897472,4.00324279,91.323,91.244,3.85866653]
[1772647897669,4.00324279,91.323,91.254,3.85866653]
[1772647897983,4.00324279,91.323,91.238,1.09603454]
[1772647897984,4.00324279,91.323,91.264,3.85866653]
[1772647898503,4.00324279,91.323,91.157,0.4]
[1772647898504,4.00324279,91.321,91.247,3.85866653]
[1772647899563,4.00324279,91.319,91.247,3.85866653]
[1772647900486,4.00324279,91.317,91.249,3.85866653]
[1772647902889,4.00324279,91.315,91.251,3.85866653]
[1772647904073,43.76641428,91.395,91.25,180.82191777]
[1772647904074,4.00324279,91.325,91.26,3.85866653]
[1772647904387,4.00324279,91.325,91.264,3.85866653]
[1772647904766,4.00324279,91.323,91.266,3.85866653]
[1772647906782,4.00324279,91.321,91.268,3.85866653]
[1772647908797,4.00324279,91.321,91.27,4.31084586]
[1772647910923,4.02083556,91.343,91.272,4.31084586]
[1772647911216,4.02083556,91.342,91.272,4.31084586]
[1772647911891,4.02083556,91.342,91.281,4.31084586]
[1772647912097,4.02083556,91.342,91.285,4.31084586]
[1772647912994,4.02083556,91.342,91.274,3.69383402]
[1772647912995,4.02083556,91.34,91.287,4.31084586]
[1772647913213,4.02083556,91.34,91.286,10.9545823]
[1772647913617,4.02083556,91.339,91.286,10.9545823]
[1772647914605,4.02083556,91.339,91.286,38.34103805]
[1772647914803,4.02083556,91.339,91.287,4.31084586]
[1772647915002,4.02083556,91.337,91.289,4.31084586]
[1772647917201,4.02083556,91.335,91.291,4.31084586]
[1772647919794,4.02083556,91.335,91.293,4.31084586]
[1772647920817,0.2,91.37,91.296,4.31084586]
[1772647920818,4.02083556,91.356,91.296,4.31084586]
[1772647921010,4.02083556,91.356,91.304,4.31084586]
[1772647921998,4.02083556,91.356,91.306,4.31084586]
[1772647922208,4.02083556,91.354,91.305,10.95230272]
[1772647922412,4.02083556,91.354,91.305,38.33305952]
[1772647923121,4.02083556,91.354,91.305,10.95230272]
[1772647924422,4.02083556,91.349,91.294,10.95362236]
[1772647924613,4.02083556,91.349,91.294,38.33767826]
[1772647925220,4.02083556,91.349,91.294,42.64852412]
[1772647925523,4.02083556,91.349,91.295,4.31084586]
[1772647925727,4.02083556,91.349,91.294,38.33767826]
[1772647925922,4.02083556,91.349,91.295,4.31084586]
[1772647926301,4.02083556,91.347,91.297,4.31084586]
[1772647926517,4.02083556,91.347,91.26,4.31084586]
[1772647926713,4.02083556,91.339,91.26,4.31084586]
[1772647926925,8.88108932,91.33,91.256,10.95818357]
[1772647927103,4.02083556,91.309,91.257,4.31084586]
[1772647927917,4.02083556,91.309,91.256,10.95818357]
[1772647928629,4.02083556,91.307,91.256,4.31084586]
[1772647931515,27.37806302,91.314,91.258,4.31084586]
[1772647931516,4.02083556,91.305,91.258,4.31084586]
[1772647932539,4.02083556,91.315,91.258,4.31084586]
[1772647932708,4.02083556,91.315,91.26,4.31084586]
[1772647933519,4.02083556,91.315,91.259,0.4]
[1772647933520,4.02083556,91.313,91.262,4.31084586]
[1772647933924,4.02083556,91.332,91.262,4.31084586]
[1772647934134,4.02083556,91.331,91.264,4.31084586]
[1772647935436,4.02083556,91.329,91.266,4.31084586]
[1772647935909,9.08108932,91.37,91.269,4.31084586]
[1772647935910,4.02083556,91.365,91.269,4.31084586]
[1772647936109,4.02083556,91.363,91.271,4.31084586]
[1772647937130,4.02083556,91.361,91.276,4.31084586]
[1772647938018,4.02083556,91.361,91.278,4.31084586]
[1772647939224,4.25419273,91.359,91.281,4.14212331]
[1772647939613,4.25419273,91.359,91.28,136.94127956]
[1772647939614,4.25419273,91.359,91.285,4.14212331]
[1772647940429,4.25419273,91.359,91.287,4.14212331]
[1772647940734,4.25419273,91.359,91.291,4.14212331]
[1772647941231,4.25419273,91.357,91.293,4.14212331]
[1772647941816,0.2,91.37,91.296,4.42644645]
[1772647942033,4.25419273,91.369,91.306,4.42644645]
[1772647943017,1e-08,91.37,91.306,4.42644645]
[1772647943216,1e-08,91.37,91.311,4.42644645]